fUST/lending_fUST_20250326
["ID","MTS","AMOUNT","RATE_DAILY","PERIOD"]
[356666780,1742938150933,-500.0,0.00011232,2]
[356666781,1742938150953,-500.0,0.00011232,2]
[356666782,1742938150972,-500.0,0.00011232,2]
[356666783,1742938150992,-500.0,0.00011232,2]
[356666784,1742938151012,-500.0,0.00011232,2]
[356666785,1742938151031,-500.0,0.00011232,2]
[356666786,1742938151050,-500.0,0.00011232,2]
[356666787,1742938151070,-500.0,0.00011232,2]
[356666788,1742938151089,-500.0,0.00011232,2]
[356666789,1742938151109,-500.0,0.00011232,2]
[356666790,1742938151130,-500.0,0.00011232,2]
[356666791,1742938151151,-500.0,0.00011232,2]
[356666792,1742938151172,-500.0,0.00011232,2]
[356666793,1742938151193,-500.0,0.00011232,2]
[356666794,1742938151213,-500.0,0.00011232,2]
[356666795,1742938151234,-500.0,0.00011232,2]
[356666796,1742938151254,-500.0,0.00011232,2]
[356666797,1742938151274,-691.39,0.00011232,2]
[356666798,1742938151293,-500.0,0.00011232,2]
[356666799,1742938151314,-500.0,0.00011232,2]
[356666800,1742938151334,-500.0,0.00011232,2]
[356666801,1742938151354,-500.0,0.00011232,2]
[356666802,1742938151378,-500.0,0.00011232,2]
[356666803,1742938151400,-500.0,0.00011232,2]
[356666804,1742938151421,-500.0,0.00011232,2]
[356666805,1742938151441,-500.0,0.00011232,2]
[356666806,1742938151461,-500.0,0.00011232,2]
[356666807,1742938151482,-500.0,0.00011232,2]
[356666808,1742938151503,-500.0,0.00011232,2]
[356666809,1742938151524,-500.0,0.00011232,2]
[356666810,1742938151544,-500.0,0.00011232,2]
[356666811,1742938151565,-500.0,0.00011232,2]
[356666812,1742938151586,-500.0,0.00011232,2]
[356666813,1742938151607,-221.30379899,0.00011232,2]
[356666814,1742938151722,-500.0,0.00010973,2]
[356666815,1742938151744,-278.69620101,0.00011232,2]
[356666816,1742938151769,-500.0,0.00011232,2]
[356666817,1742938151790,-500.0,0.00011232,2]
[356666818,1742938151811,-500.0,0.00011232,2]
[356666819,1742938151835,-520.96,0.00011232,2]
[356666820,1742938151856,-500.0,0.00011232,2]
[356666821,1742938151877,-500.0,0.00011232,2]
[356666822,1742938151898,-414.86917255,0.00011232,2]
[356666823,1742938151919,-500.0,0.00011232,2]
[356666824,1742938151940,-500.0,0.00011232,2]
[356666825,1742938151961,-500.0,0.00011232,2]
[356666826,1742938151983,-500.0,0.00011232,2]
[356666827,1742938152004,-500.0,0.00011232,2]
[356666828,1742938152024,-500.0,0.00011232,2]
[356666829,1742938152045,-507.38,0.00011232,2]
[356666830,1742938152066,-1180.41,0.00011232,2]
[356666831,1742938152087,-500.0,0.00011232,2]
[356666832,1742938152108,-500.0,0.00011232,2]
[356666833,1742938152131,-500.0,0.00011232,2]
[356666834,1742938152152,-3137.01,0.00011232,2]
[356666835,1742938152352,-524.29,0.00011232,2]
[356666836,1742938152374,-2537.95,0.00011232,2]
[356666837,1742938152395,-500.0,0.00011232,2]
[356666838,1742938152416,-426.46215787,0.00011232,2]
[356666839,1742938152437,-500.0,0.00011232,2]
[356666840,1742938152459,-500.0,0.00011232,2]
[356666841,1742938152481,-548.85,0.00011232,2]
[356666842,1742938152502,-996.73,0.00011232,2]
[356666843,1742938152523,-500.0,0.00011232,2]
[356666844,1742938152543,-500.0,0.00011232,2]
[356666845,1742938152564,-500.0,0.00011232,2]
[356666846,1742938152584,-500.0,0.00011232,2]
[356666847,1742938152605,-500.0,0.00011232,2]
[356666848,1742938152627,-500.0,0.00011232,2]
[356666849,1742938152647,-555.53,0.00011232,2]
[356666850,1742938152668,-526.13,0.00011232,2]
[356666851,1742938152690,-500.0,0.00011232,2]
[356666852,1742938152711,-2527.5,0.00011232,2]
[356666853,1742938152733,-873.78,0.00011232,2]
[356666854,1742938152761,-7115.63,0.00011232,2]
[356666855,1742938152783,-875.61,0.00011232,2]
[356666856,1742938152803,-646.3,0.00011232,2]
[356666857,1742938152824,-500.0,0.00011232,2]
[356666858,1742938152847,-1018.9,0.00011232,2]
[356666859,1742938152867,-1372.73,0.00011232,2]
[356666860,1742938152889,-500.0,0.00011232,2]
[356666861,1742938152912,-2180.77,0.00011232,2]
[356666862,1742938152935,-500.0,0.00011232,2]
[356666863,1742938152956,-500.0,0.00011232,2]
[356666864,1742938152977,-3135.12,0.00011232,2]
[356666865,1742938152999,-500.0,0.00011232,2]
[356666866,1742938153019,-500.0,0.00011232,2]
[356666867,1742938153040,-4321.72,0.00011232,2]
[356666868,1742938153062,-500.0,0.00011232,2]
[356666869,1742938153083,-153.9442931,0.00011232,2]
[356666870,1742938153104,-500.0,0.00011232,2]
[356666871,1742938153125,-2553.7,0.00011232,2]
[356666872,1742938153148,-500.0,0.00011232,2]
[356666873,1742938153169,-808.28,0.00011232,2]
[356666874,1742938153190,-500.0,0.00011232,2]
[356666875,1742938153212,-500.0,0.00011232,2]
[356666876,1742938153233,-500.0,0.00011232,2]
[356666877,1742938153255,-500.0,0.00011232,2]
[356666878,1742938153277,-594.83,0.00011232,2]
[356666879,1742938153298,-956.41,0.00011232,2]
[356666880,1742938153332,-500.0,0.00011232,2]
[356666881,1742938153356,-500.0,0.00011232,2]
[356666882,1742938153379,-500.0,0.00011232,2]
[356666883,1742938153403,-500.0,0.00011232,2]
[356666884,1742938153425,-500.0,0.00011232,2]
[356666885,1742938153447,-714.58,0.00011232,2]
[356666886,1742938153469,-500.0,0.00011232,2]
[356666887,1742938153491,-2047.76,0.00011232,2]
[356666888,1742938153514,-7202.94,0.00011232,2]
[356666889,1742938153536,-732.82,0.00011232,2]
[356666890,1742938153558,-852.83,0.00011232,2]
[356666891,1742938153581,-500.0,0.00011232,2]
[356666892,1742938153603,-59653.11849667,0.00011232,2]
[356666893,1742938153796,-34548.67150333,0.00011232,2]
[356666894,1742938153819,-500.0,0.00011232,2]
[356666895,1742938153839,-500.0,0.00011232,2]
[356666896,1742938153860,-500.0,0.00011232,2]
[356666897,1742938153881,-959.43,0.00011232,2]
[356666898,1742938153902,-500.0,0.00011232,2]
[356666899,1742938153922,-500.0,0.00011232,2]
[356666900,1742938153942,-2920.37,0.00011232,2]
[356666901,1742938153963,-5299.95,0.00011232,2]
[356666902,1742938153983,-1048.56,0.00011232,2]
[356666903,1742938154007,-500.0,0.00011232,2]
[356666904,1742938154028,-1744.99,0.00011232,2]
[356666905,1742938154050,-1033.07,0.00011232,2]
[356666906,1742938154071,-500.0,0.00011232,2]
[356666907,1742938154092,-1055.66,0.00011232,2]
[356666908,1742938154113,-1441.32,0.00011232,2]
[356666909,1742938154135,-1497.5,0.00011232,2]
[356666910,1742938154155,-834.5,0.00011232,2]
[356666911,1742938154175,-152.0,0.00011365,2]
[356666912,1742938162914,509.44,0.00010958,2]
[356666913,1742938163193,509.44,0.00011232,2]
[356666914,1742938166088,500.0,0.00010958,2]
[356666915,1742938166364,500.0,0.00011232,2]
[356666916,1742938170367,503.11,0.00010958,2]
[356666917,1742938170617,503.11,0.00011232,2]
[356666918,1742938172304,500.0,0.00010958,2]
[356666919,1742938172579,500.0,0.00011232,2]
[356666920,1742938178612,575.82,0.00010958,2]
[356666921,1742938178926,575.82,0.00011232,2]
[356666922,1742938179390,913.67,0.00010958,2]
[356666923,1742938179651,913.67,0.00011232,2]
[356666924,1742938180379,3371.5,0.00010958,2]
[356666925,1742938180631,3371.5,0.00011232,2]
[356666926,1742938188913,500.0,0.00010958,2]
[356666927,1742938189025,500.0,0.00011232,2]
[356666928,1742938190720,500.0,0.00010958,2]
[356666929,1742938191002,497.93873633,0.00011232,2]
[356666930,1742938195198,834.46,0.00010958,2]
[356666931,1742938195320,500.0,0.00010958,2]
[356666932,1742938195347,500.0,0.00010958,2]
[356666933,1742938195470,834.46,0.00011232,2]
[356666934,1742938195590,500.0,0.00011232,2]
[356666935,1742938195617,500.0,0.00011232,2]
[356666936,1742938198231,565.49,0.00010958,2]
[356666937,1742938198484,565.49,0.00011232,2]
[356666938,1742938201848,500.0,0.00010958,2]
[356666939,1742938202152,500.0,0.00011232,2]
[356666940,1742938203670,541.51,0.00010958,2]
[356666941,1742938203931,541.51,0.00011232,2]
[356666942,1742938204190,151.0,0.00012,3]
[356666943,1742938208427,1000.0,0.00012,3]
[356666944,1742938209751,2316.87,0.00010958,2]
[356666945,1742938210382,2316.87,0.00011232,2]
[356666946,1742938211861,600.0,0.00012,3]
[356666947,1742938213033,513.79,0.00010958,2]
[356666948,1742938213322,513.79,0.00011232,2]
[356666949,1742938220809,6522.66,0.00010958,2]
[356666950,1742938221079,6522.66,0.00011232,2]
[356666951,1742938221540,800.97,0.00010958,2]
[356666952,1742938221828,800.97,0.00011232,2]
[356666953,1742938222446,4519.8671765,0.00010547,2]
[356666954,1742938226311,500.0,0.00010958,2]
[356666955,1742938226615,500.0,0.00011232,2]
[356666956,1742938230586,500.0,0.00010958,2]
[356666957,1742938230674,500.0,0.00011232,2]
[356666962,1742938231865,802.64,0.00010958,2]
[356666974,1742938232102,802.64,0.00011232,2]
[356666983,1742938232432,-138.83853668,0.00011454,2]
[356666984,1742938232442,-300.0,0.00011455,2]
[356666985,1742938232452,-500.0,0.00011455,2]
[356666986,1742938232463,-158799.99980677,0.00011456,2]
[356666987,1742938232474,-430.80035235,0.00011506,2]
[356666988,1742938232484,-500.0,0.00011506,2]
[356666989,1742938232493,-500.0,0.00011506,2]
[356666990,1742938232502,-637.85364534,0.00011506,2]
[356666991,1742938232511,-500.0,0.00011506,2]
[356666992,1742938232521,-500.0,0.00011506,2]
[356666993,1742938232530,-500.0,0.00011506,2]
[356666994,1742938232540,-500.0,0.00011506,2]
[356666995,1742938232551,-500.0,0.00011506,2]
[356666996,1742938232560,-500.0,0.00011506,2]
[356666997,1742938232569,-500.0,0.00011506,2]
[356666999,1742938232578,-285.54,0.00011506,2]
[356667001,1742938232587,-500.0,0.00011506,2]
[356667002,1742938232596,-500.0,0.00011506,2]
[356667003,1742938232606,-500.0,0.00011506,2]
[356667004,1742938232615,-500.0,0.00011506,2]
[356667005,1742938232625,-691.39,0.00011506,2]
[356667006,1742938232634,-500.0,0.00011506,2]
[356667007,1742938232644,-500.0,0.00011506,2]
[356667008,1742938232653,-500.0,0.00011506,2]
[356667009,1742938232662,-500.0,0.00011506,2]
[356667010,1742938232671,-500.0,0.00011506,2]
[356667011,1742938232681,-500.0,0.00011506,2]
[356667012,1742938232691,-500.0,0.00011506,2]
[356667013,1742938232700,-500.0,0.00011506,2]
[356667014,1742938232709,-500.0,0.00011506,2]
[356667015,1742938232719,-500.0,0.00011506,2]
[356667016,1742938232728,-500.0,0.00011506,2]
[356667017,1742938232737,-500.0,0.00011506,2]
[356667018,1742938232746,-500.0,0.00011506,2]
[356667019,1742938232756,-520.96,0.00011506,2]
[356667020,1742938232765,-500.0,0.00011506,2]
[356667021,1742938232778,-500.0,0.00011506,2]
[356667022,1742938232787,-500.0,0.00011506,2]
[356667023,1742938232796,-500.0,0.00011506,2]
[356667024,1742938232805,-507.38,0.00011506,2]
[356667025,1742938232815,-500.0,0.00011506,2]
[356667026,1742938232824,-500.0,0.00011506,2]
[356667027,1742938232833,-500.0,0.00011506,2]
[356667028,1742938232843,-500.0,0.00011506,2]
[356667029,1742938232852,-500.0,0.00011506,2]
[356667030,1742938232862,-500.0,0.00011506,2]
[356667031,1742938232871,-646.3,0.00011506,2]
[356667032,1742938232881,-1018.9,0.00011506,2]
[356667033,1742938232890,-1372.73,0.00011506,2]
[356667034,1742938232900,-165.771864,0.00011506,2]
[356667035,1742938232910,-2180.77,0.00011506,2]
[356667036,1742938232920,-500.0,0.00011506,2]
[356667037,1742938232929,-500.0,0.00011506,2]
[356667038,1742938232940,-3135.12,0.00011506,2]
[356667039,1742938232949,-500.0,0.00011506,2]
[356667040,1742938232958,-4321.72,0.00011506,2]
[356667041,1742938232967,-500.0,0.00011506,2]
[356667042,1742938232976,-500.0,0.00011506,2]
[356667043,1742938232985,-2553.7,0.00011506,2]
[356667044,1742938232995,-500.0,0.00011506,2]
[356667045,1742938233004,-808.28,0.00011506,2]
[356667046,1742938233013,-500.0,0.00011506,2]
[356667047,1742938233023,-500.0,0.00011506,2]
[356667048,1742938233032,-594.83,0.00011506,2]
[356667049,1742938233042,-956.41,0.00011506,2]
[356667050,1742938233051,-500.0,0.00011506,2]
[356667051,1742938233062,-500.0,0.00011506,2]
[356667052,1742938233071,-500.0,0.00011506,2]
[356667053,1742938233081,-500.0,0.00011506,2]
[356667054,1742938233090,-714.58,0.00011506,2]
[356667055,1742938233099,-540.29,0.00011506,2]
[356667056,1742938233109,-2047.76,0.00011506,2]
[356667057,1742938233119,-7202.94,0.00011506,2]
[356667058,1742938233128,-732.82,0.00011506,2]
[356667059,1742938233137,-852.83,0.00011506,2]
[356667060,1742938233146,-268.39911695,0.00011506,2]
[356667061,1742938233156,-94201.79,0.00011506,2]
[356667062,1742938233165,-153.37280332,0.00011506,2]
[356667063,1742938233175,-500.0,0.00011506,2]
[356667064,1742938233185,-500.0,0.00011506,2]
[356667065,1742938233194,-959.43,0.00011506,2]
[356667066,1742938233206,-2920.37,0.00011506,2]
[356667067,1742938233215,-5299.95,0.00011506,2]
[356667068,1742938233224,-1048.56,0.00011506,2]
[356667069,1742938233233,-500.0,0.00011506,2]
[356667070,1742938233243,-1744.99,0.00011506,2]
[356667071,1742938233252,-1033.07,0.00011506,2]
[356667072,1742938233262,-500.0,0.00011506,2]
[356667073,1742938233271,-1055.66,0.00011506,2]
[356667074,1742938233281,-1441.32,0.00011506,2]
[356667075,1742938233291,-1497.5,0.00011506,2]
[356667076,1742938233301,-834.5,0.00011506,2]
[356667077,1742938233310,-509.44,0.00011506,2]
[356667078,1742938233320,-500.0,0.00011506,2]
[356667079,1742938233329,-503.11,0.00011506,2]
[356667080,1742938233338,-500.0,0.00011506,2]
[356667081,1742938233347,-575.82,0.00011506,2]
[356667082,1742938233357,-913.67,0.00011506,2]
[356667083,1742938233366,-3371.5,0.00011506,2]
[356667084,1742938233375,-834.46,0.00011506,2]
[356667085,1742938233385,-500.0,0.00011506,2]
[356667086,1742938233394,-500.0,0.00011506,2]
[356667087,1742938233403,-565.49,0.00011506,2]
[356667088,1742938233413,-500.0,0.00011506,2]
[356667089,1742938233423,-541.51,0.00011506,2]
[356667090,1742938233432,-2316.87,0.00011506,2]
[356667091,1742938233443,-513.79,0.00011506,2]
[356667092,1742938233452,-6522.66,0.00011506,2]
[356667093,1742938233461,-800.97,0.00011506,2]
[356667094,1742938233471,-510.18726746,0.00011506,2]
[356667095,1742938233480,-802.64,0.00011506,2]
[356667096,1742938233489,-428.86298961,0.00011554,2]
[356667097,1742938233499,-500.0,0.00011554,2]
[356667098,1742938233508,-535.11,0.00011554,2]
[356667099,1742938233517,-500.0,0.00011554,2]
[356667100,1742938233526,-500.0,0.00011554,2]
[356667101,1742938233536,-660.72,0.00011554,2]
[356667102,1742938233545,-500.0,0.00011554,2]
[356667103,1742938233555,-1058.28,0.00011554,2]
[356667104,1742938233564,-500.0,0.00011554,2]
[356667105,1742938233574,-977.49,0.00011554,2]
[356667106,1742938233583,-2418.46,0.00011554,2]
[356667107,1742938233591,-249.66024433,0.00011554,2]
[356667108,1742938233600,-500.0,0.00011556,2]
[356667109,1742938233609,-500.0,0.00011556,2]
[356667110,1742938233619,-500.0,0.00011556,2]
[356667111,1742938233630,-500.0,0.00011573,2]
[356667112,1742938233639,-500.0,0.00011573,2]
[356667113,1742938233649,-500.0,0.00011573,2]
[356667114,1742938233659,-500.0,0.00011573,2]
[356667115,1742938233668,-500.0,0.00011573,2]
[356667116,1742938233677,-500.0,0.00011573,2]
[356667117,1742938233687,-500.0,0.00011573,2]
[356667118,1742938233697,-500.0,0.00011573,2]
[356667119,1742938233707,-500.0,0.00011573,2]
[356667120,1742938233717,-500.0,0.00011573,2]
[356667121,1742938233726,-500.0,0.00011729,2]
[356667122,1742938233736,-500.0,0.00011773,2]
[356667123,1742938233747,-500.0,0.00011773,2]
[356667124,1742938233756,-500.0,0.00011773,2]
[356667125,1742938233770,-500.0,0.0001178,2]
[356667126,1742938233779,-500.0,0.0001178,2]
[356667127,1742938233789,-500.0,0.0001178,2]
[356667128,1742938233798,-500.0,0.0001178,2]
[356667129,1742938233809,-500.0,0.0001178,2]
[356667130,1742938233819,-500.0,0.0001178,2]
[356667131,1742938233828,-500.0,0.0001178,2]
[356667132,1742938233837,-500.0,0.0001178,2]
[356667133,1742938233850,-500.0,0.0001178,2]
[356667134,1742938233860,-500.0,0.0001178,2]
[356667135,1742938233869,-500.0,0.0001178,2]
[356667136,1742938233878,-500.0,0.0001178,2]
[356667137,1742938233888,-691.39,0.0001178,2]
[356667138,1742938233897,-500.0,0.0001178,2]
[356667139,1742938233906,-500.0,0.0001178,2]
[356667140,1742938233916,-500.0,0.0001178,2]
[356667141,1742938233925,-500.0,0.0001178,2]
[356667142,1742938233935,-500.0,0.0001178,2]
[356667143,1742938233945,-500.0,0.0001178,2]
[356667144,1742938233955,-500.0,0.0001178,2]
[356667145,1742938233964,-500.0,0.0001178,2]
[356667146,1742938233974,-500.0,0.0001178,2]
[356667147,1742938233984,-500.0,0.0001178,2]
[356667148,1742938233993,-500.0,0.0001178,2]
[356667149,1742938234002,-500.0,0.0001178,2]
[356667150,1742938234011,-500.0,0.0001178,2]
[356667151,1742938234020,-520.96,0.0001178,2]
[356667152,1742938234030,-313.84875336,0.0001178,2]
[356667153,1742938234041,-500.0,0.0001178,2]
[356667154,1742938234050,-500.0,0.0001178,2]
[356667155,1742938234060,-500.0,0.0001178,2]
[356667156,1742938234069,-507.38,0.0001178,2]
[356667157,1742938234078,-500.0,0.0001178,2]
[356667158,1742938234088,-500.0,0.0001178,2]
[356667159,1742938234098,-500.0,0.0001178,2]
[356667160,1742938234107,-500.0,0.0001178,2]
[356667161,1742938234248,-520.49735808,0.0001178,2]
[356667162,1742938234258,-500.0,0.0001178,2]
[356667163,1742938234267,-646.3,0.0001178,2]
[356667164,1742938234277,-1018.9,0.0001178,2]
[356667165,1742938234287,-1372.73,0.0001178,2]
[356667166,1742938234297,-2180.77,0.0001178,2]
[356667167,1742938234306,-500.0,0.0001178,2]
[356667168,1742938234316,-500.0,0.0001178,2]
[356667169,1742938234325,-3135.12,0.0001178,2]
[356667170,1742938234335,-500.0,0.0001178,2]
[356667171,1742938234344,-4321.72,0.0001178,2]
[356667172,1742938234353,-500.0,0.0001178,2]
[356667173,1742938234363,-500.0,0.0001178,2]
[356667174,1742938234372,-2553.7,0.0001178,2]
[356667175,1742938234381,-344.10114866,0.0001178,2]
[356667176,1742938234391,-808.28,0.0001178,2]
[356667177,1742938234400,-500.0,0.0001178,2]
[356667178,1742938234409,-500.0,0.0001178,2]
[356667179,1742938234419,-594.83,0.0001178,2]
[356667180,1742938234428,-956.41,0.0001178,2]
[356667181,1742938234438,-500.0,0.0001178,2]
[356667182,1742938234448,-500.0,0.0001178,2]
[356667183,1742938234460,-582.71833915,0.0001178,2]
[356667184,1742938234470,-500.0,0.0001178,2]
[356667185,1742938234480,-714.58,0.0001178,2]
[356667186,1742938234491,-2047.76,0.0001178,2]
[356667187,1742938234501,-7202.94,0.0001178,2]
[356667188,1742938234511,-732.82,0.0001178,2]
[356667189,1742938234521,-852.83,0.0001178,2]
[356667190,1742938234531,-94201.79,0.0001178,2]
[356667191,1742938234542,-500.0,0.0001178,2]
[356667192,1742938234552,-500.0,0.0001178,2]
[356667193,1742938234562,-959.43,0.0001178,2]
[356667194,1742938234572,-2920.37,0.0001178,2]
[356667195,1742938234582,-5299.95,0.0001178,2]
[356667196,1742938234591,-1048.56,0.0001178,2]
[356667197,1742938234600,-500.0,0.0001178,2]
[356667198,1742938234610,-1744.99,0.0001178,2]
[356667199,1742938234620,-1033.07,0.0001178,2]
[356667200,1742938234629,-500.0,0.0001178,2]
[356667201,1742938234639,-1055.66,0.0001178,2]
[356667202,1742938234648,-1441.32,0.0001178,2]
[356667203,1742938234658,-1497.5,0.0001178,2]
[356667204,1742938234667,-834.5,0.0001178,2]
[356667205,1742938234677,-509.44,0.0001178,2]
[356667206,1742938234687,-500.0,0.0001178,2]
[356667207,1742938234696,-503.11,0.0001178,2]
[356667208,1742938234706,-500.0,0.0001178,2]
[356667209,1742938234716,-575.82,0.0001178,2]
[356667210,1742938234726,-913.67,0.0001178,2]
[356667211,1742938234736,-3371.5,0.0001178,2]
[356667212,1742938234746,-834.46,0.0001178,2]
[356667213,1742938234756,-500.0,0.0001178,2]
[356667214,1742938234766,-500.0,0.0001178,2]
[356667215,1742938234779,-565.49,0.0001178,2]
[356667216,1742938234788,-500.0,0.0001178,2]
[356667217,1742938234798,-541.51,0.0001178,2]
[356667218,1742938234808,-2316.87,0.0001178,2]
[356667219,1742938234818,-513.79,0.0001178,2]
[356667220,1742938234827,-6522.66,0.0001178,2]
[356667221,1742938234836,-800.97,0.0001178,2]
[356667222,1742938234847,-3000.0,0.0001178,2]
[356667223,1742938234856,-271.89750313,0.00011828,2]
[356667224,1742938234866,-535.11,0.00011828,2]
[356667225,1742938234875,-500.0,0.00011828,2]
[356667226,1742938234885,-500.0,0.00011828,2]
[356667227,1742938234894,-660.72,0.00011828,2]
[356667228,1742938234903,-500.0,0.00011828,2]
[356667229,1742938234912,-1058.28,0.00011828,2]
[356667230,1742938234920,-500.0,0.00011828,2]
[356667231,1742938234930,-977.49,0.00011828,2]
[356667232,1742938234940,-2418.46,0.00011828,2]
[356667233,1742938234950,-548.26155627,0.0001183,2]
[356667234,1742938234959,-500.0,0.0001183,2]
[356667235,1742938234968,-500.0,0.0001183,2]
[356667236,1742938234978,-150.0,0.00011847,2]
[356667237,1742938234987,-500.0,0.00012003,2]
[356667238,1742938234997,-500.0,0.00012054,2]
[356667239,1742938235007,-285.43900925,0.00012054,2]
[356667240,1742938235018,-500.0,0.00012054,2]
[356667241,1742938235028,-500.0,0.00012054,2]
[356667242,1742938235037,-500.0,0.00012054,2]
[356667243,1742938235047,-500.0,0.00012054,2]
[356667244,1742938235056,-500.0,0.00012054,2]
[356667245,1742938235066,-500.0,0.00012054,2]
[356667246,1742938235076,-500.0,0.00012054,2]
[356667247,1742938235087,-500.0,0.00012054,2]
[356667248,1742938235099,-691.39,0.00012054,2]
[356667249,1742938235108,-500.0,0.00012054,2]
[356667250,1742938235118,-500.0,0.00012054,2]
[356667251,1742938235127,-500.0,0.00012054,2]
[356667252,1742938235136,-500.0,0.00012054,2]
[356667253,1742938235145,-500.0,0.00012054,2]
[356667254,1742938235156,-500.0,0.00012054,2]
[356667255,1742938235166,-500.0,0.00012054,2]
[356667256,1742938235176,-500.0,0.00012054,2]
[356667257,1742938235187,-500.0,0.00012054,2]
[356667258,1742938235196,-567.05174576,0.00012054,2]
[356667259,1742938235206,-500.0,0.00012054,2]
[356667260,1742938235217,-500.0,0.00012054,2]
[356667261,1742938235227,-500.0,0.00012054,2]
[356667262,1742938235236,-520.96,0.00012054,2]
[356667263,1742938235245,-500.0,0.00012054,2]
[356667264,1742938235255,-500.0,0.00012054,2]
[356667265,1742938235267,-500.0,0.00012054,2]
[356667266,1742938235276,-507.38,0.00012054,2]
[356667267,1742938235286,-500.0,0.00012054,2]
[356667268,1742938235296,-500.0,0.00012054,2]
[356667269,1742938235305,-590.69467442,0.00012054,2]
[356667270,1742938235314,-500.0,0.00012054,2]
[356667271,1742938235324,-500.0,0.00012054,2]
[356667272,1742938235335,-646.3,0.00012054,2]
[356667273,1742938235345,-1018.9,0.00012054,2]
[356667274,1742938235355,-1372.73,0.00012054,2]
[356667275,1742938235364,-2180.77,0.00012054,2]
[356667276,1742938235374,-500.0,0.00012054,2]
[356667277,1742938235383,-500.0,0.00012054,2]
[356667278,1742938235392,-3135.12,0.00012054,2]
[356667279,1742938235402,-500.0,0.00012054,2]
[356667280,1742938235411,-4321.72,0.00012054,2]
[356667281,1742938235421,-500.0,0.00012054,2]
[356667282,1742938235431,-500.0,0.00012054,2]
[356667283,1742938235440,-2553.7,0.00012054,2]
[356667284,1742938235450,-808.28,0.00012054,2]
[356667285,1742938235459,-500.0,0.00012054,2]
[356667286,1742938235468,-500.0,0.00012054,2]
[356667287,1742938235478,-594.83,0.00012054,2]
[356667288,1742938235487,-956.41,0.00012054,2]
[356667289,1742938235496,-500.0,0.00012054,2]
[356667290,1742938235505,-372.83437368,0.00012054,2]
[356667291,1742938235515,-500.0,0.00012054,2]
[356667292,1742938235525,-714.58,0.00012054,2]
[356667293,1742938235535,-2047.76,0.00012054,2]
[356667294,1742938235544,-7202.94,0.00012054,2]
[356667295,1742938235553,-732.82,0.00012054,2]
[356667296,1742938235562,-852.83,0.00012054,2]
[356667297,1742938235572,-94201.79,0.00012054,2]
[356667298,1742938235581,-500.0,0.00012054,2]
[356667299,1742938235591,-500.0,0.00012054,2]
[356667300,1742938235600,-959.43,0.00012054,2]
[356667301,1742938235609,-2920.37,0.00012054,2]
[356667302,1742938235619,-5299.95,0.00012054,2]
[356667303,1742938235628,-1048.56,0.00012054,2]
[356667304,1742938235638,-500.0,0.00012054,2]